[Event "21th IPCA World Individual Chp."]
[Site "followchess.com"]
[Date "2022.05.14"]
[Round "7"]
[White "Babanov, Aleksandr"]
[Black "Srimskov, Elishar"]
[Result "1-0"]
[WhiteElo "1929"]
[BlackElo "1992"]
[ECO "A01"]
[WhiteFed "RUS"]
[BlackFed "ISR"]
[FCGameId "1964606906"]
[WhiteFideId "24117412"]
[BlackFideId "2807254"]
[TimeControl "5400+30"]

1. b3 {[%clk 1:30:23]} Nf6 {[%clk 1:28:26]} 2. Bb2 {[%clk 1:30:45]} e6 
{[%clk 1:28:19]} 3. e3 {[%clk 1:29:31]} d5 {[%clk 1:28:23]} 4. Nf3 
{[%clk 1:29:36]} Nbd7 {[%clk 1:28:26]} 5. g3 {[%clk 1:25:47]} Be7 
{[%clk 1:27:50]} 6. Bg2 {[%clk 1:26:06]} O-O {[%clk 1:27:53]} 7. O-O 
{[%clk 1:24:20]} Ne4 {[%clk 1:25:26]} 8. d3 {[%clk 1:22:21]} Bf6 
{[%clk 1:25:05]} 9. c3 {[%clk 1:19:45]} Nd6 {[%clk 1:24:32]} 10. h4 
{[%clk 1:15:38]} Re8 {[%clk 1:21:43]} 11. Nh2 {[%clk 1:14:39]} c6 
{[%clk 1:17:01]} 12. Ng4 {[%clk 1:10:30]} e5 {[%clk 1:15:22]} 13. e4 
{[%clk 1:04:29]} Nb6 {[%clk 1:07:20]} 14. Nxf6+ {[%clk 1:03:31]} Qxf6 
{[%clk 1:07:40]} 15. c4 {[%clk 1:00:29]} dxc4 {[%clk 1:06:08]} 16. dxc4 
{[%clk 0:59:32]} c5 {[%clk 1:05:42]} 17. Nc3 {[%clk 0:57:35]} Be6 
{[%clk 1:04:25]} 18. Qxd6 {[%clk 0:55:22]} 1-0

[Event "21th IPCA World Individual Chp."]
[Site "followchess.com"]
[Date "2022.05.14"]
[Round "7"]
[White "Mekus, Manuela"]
[Black "Valenta, Vit Vaclav"]
[Result "0-1"]
[WhiteElo "1644"]
[BlackElo "2014"]
[ECO "B40"]
[WhiteFed "GER"]
[BlackFed "CZE"]
[FCGameId "536101282"]
[WhiteFideId "16202562"]
[BlackFideId "307440"]
[TimeControl "5400+30"]

1. e4 {[%clk 1:30:46]} c5 {[%clk 1:28:35]} 2. Nf3 {[%clk 1:30:34]} e6 
{[%clk 1:28:59]} 3. d3 {[%clk 1:30:49]} Nc6 {[%clk 1:29:14]} 4. g3 
{[%clk 1:31:01]} g6 {[%clk 1:29:34]} 5. Bg2 {[%clk 1:31:21]} Bg7 
{[%clk 1:29:58]} 6. O-O {[%clk 1:31:16]} Nge7 {[%clk 1:30:13]} 7. Nbd2 
{[%clk 1:25:53]} O-O {[%clk 1:29:38]} 8. c3 {[%clk 1:23:02]} b6 {[%clk 1:29:20]} 
9. Re1 {[%clk 1:22:09]} Bb7 {[%clk 1:25:59]} 10. Nc4 {[%clk 1:10:21]} d5 
{[%clk 1:18:59]} 11. Ncd2 {[%clk 1:09:25]} Qc7 {[%clk 1:16:22]} 12. Nf1 
{[%clk 1:08:29]} Rad8 {[%clk 1:16:01]} 13. Qe2 {[%clk 1:08:31]} Ba6 
{[%clk 1:15:27]} 14. Bf4 {[%clk 1:02:24]} e5 {[%clk 1:13:32]} 15. Bg5 
{[%clk 1:01:19]} dxe4 {[%clk 1:13:26]} 16. Qxe4 {[%clk 1:01:46]} Bxd3 
{[%clk 1:13:41]} 17. Qa4 {[%clk 0:55:56]} h6 {[%clk 1:12:52]} 18. Be3 
{[%clk 0:54:39]} Nf5 {[%clk 1:09:55]} 19. N3d2 {[%clk 0:54:07]} Nce7 
{[%clk 1:02:00]} 20. Ne4 {[%clk 0:48:13]} Nxe3 {[%clk 0:57:28]} 21. Rxe3 
{[%clk 0:48:13]} f5 {[%clk 0:56:12]} 22. Rxd3 {[%clk 0:47:49]} Rxd3 
{[%clk 0:56:34]} 23. Qc4+ {[%clk 0:48:09]} Rd5 {[%clk 0:57:03]} 24. Ned2 
{[%clk 0:48:27]} e4 {[%clk 0:55:42]} 25. Ne3 {[%clk 0:48:18]} Qe5 
{[%clk 0:50:23]} 26. Nxd5 {[%clk 0:48:36]} Qxd5 {[%clk 0:50:12]} 27. Bf1 
{[%clk 0:47:32]} Kh7 {[%clk 0:49:18]} 28. Qxd5 {[%clk 0:47:30]} Nxd5 
{[%clk 0:49:46]} 29. Bc4 {[%clk 0:47:05]} Rd8 {[%clk 0:46:52]} 30. Nf1 
{[%clk 0:47:07]} Nc7 {[%clk 0:44:52]} 31. Ne3 {[%clk 0:46:47]} b5 
{[%clk 0:43:17]} 32. Bf1 {[%clk 0:46:25]} h5 {[%clk 0:39:40]} 33. Rd1 
{[%clk 0:46:06]} Rxd1 {[%clk 0:40:02]} 34. Nxd1 {[%clk 0:46:30]} Bh6 
{[%clk 0:40:25]} 35. Ne3 {[%clk 0:46:13]} Kg7 {[%clk 0:39:15]} 36. Ng2 
{[%clk 0:39:25]} a5 {[%clk 0:36:36]} 37. Ne1 Bc1 {[%clk 0:36:29]} 38. c4 
{[%clk 0:38:45]} bxc4 {[%clk 0:33:40]} 39. Bxc4 {[%clk 0:39:12]} Bxb2 
{[%clk 0:34:02]} 40. Nc2 {[%clk 0:39:28]} Bd4 {[%clk 0:33:16]} 41. Kf1 
{[%clk 0:39:29]} Ne8 {[%clk 0:33:12]} 42. Ke2 {[%clk 0:38:18]} Nd6 
{[%clk 0:33:28]} 43. Bd5 {[%clk 0:37:09]} Nb5 {[%clk 0:30:40]} 44. Ke1 
{[%clk 0:36:11]} Nc3 {[%clk 0:29:07]} 45. Be6 {[%clk 0:32:55]} Kf6 
{[%clk 0:28:57]} 46. Bg8 {[%clk 0:33:21]} g5 {[%clk 0:25:58]} 47. Bc4 
{[%clk 0:28:33]} h4 {[%clk 0:25:12]} 48. Ne3 {[%clk 0:23:52]} Bxe3 
{[%clk 0:23:24]} 49. fxe3 {[%clk 0:24:03]} hxg3 {[%clk 0:23:46]} 50. hxg3 
{[%clk 0:24:22]} Ke5 {[%clk 0:24:04]} 51. Kd2 {[%clk 0:24:30]} Nd5 
{[%clk 0:23:52]} 52. a3 {[%clk 0:24:22]} f4 {[%clk 0:21:42]} 53. exf4+ 
{[%clk 0:24:09]} gxf4 {[%clk 0:22:11]} 54. gxf4+ {[%clk 0:23:54]} Nxf4 
{[%clk 0:22:39]} 55. Kc3 {[%clk 0:15:09]} Nd5+ {[%clk 0:22:56]} 56. Kb3 
{[%clk 0:14:38]} Kd4 {[%clk 0:23:12]} 57. Bf1 {[%clk 0:14:46]} Nc3 
{[%clk 0:23:20]} 58. Ba6 a4+ 0-1

[Event "21th IPCA World Individual Chp."]
[Site "followchess.com"]
[Date "2022.05.14"]
[Round "7"]
[White "Cosic, Radoslav"]
[Black "Shapiro, Benny"]
[Result "0-1"]
[WhiteElo "2003"]
[BlackElo "1884"]
[ECO "A04"]
[WhiteFed "CRO"]
[BlackFed "ISR"]
[FCGameId "123364224"]
[WhiteFideId "14504367"]
[BlackFideId "2801582"]
[TimeControl "5400+30"]

1. Nf3 {[%clk 1:30:30]} e6 {[%clk 1:30:30]} 2. b3 {[%clk 1:30:30]} Nf6 
{[%clk 1:30:30]} 3. Bb2 {[%clk 1:30:30]} d5 {[%clk 1:30:30]} 4. e3 
{[%clk 1:30:30]} Be7 {[%clk 1:30:30]} 5. Ne5 {[%clk 1:30:30]} O-O 
{[%clk 1:30:30]} 6. f4 {[%clk 1:30:30]} c5 {[%clk 1:30:30]} 7. Nc3 
{[%clk 1:30:30]} d4 8. Ne2 {[%clk 1:30:30]} dxe3 {[%clk 1:29:19]} 9. dxe3 
{[%clk 1:31:24]} Ne4 {[%clk 1:28:42]} 10. Qd3 {[%clk 1:31:19]} Qa5+ 
{[%clk 1:28:35]} 11. c3 {[%clk 1:31:44]} f5 {[%clk 1:28:11]} 12. Nc4 
{[%clk 1:31:49]} Qc7 {[%clk 1:27:59]} 13. a4 {[%clk 1:31:04]} b6 14. Qc2 Bb7 
{[%clk 1:24:52]} 15. Ne5 {[%clk 1:28:35]} Nd7 {[%clk 1:23:46]} 16. Nf3 
{[%clk 1:28:21]} e5 {[%clk 1:21:46]} 17. c4 {[%clk 1:27:05]} exf4 
{[%clk 1:18:24]} 18. Nxf4 {[%clk 1:27:23]} Qc6 {[%clk 1:13:33]} 19. Nd5 
{[%clk 1:27:52]} Rae8 {[%clk 1:11:51]} 20. Bd3 {[%clk 1:28:03]} Bf6 
{[%clk 1:10:35]} 21. O-O {[%clk 1:25:49]} Bxb2 {[%clk 1:08:52]} 22. Qxb2 
{[%clk 1:26:18]} Ndf6 {[%clk 1:08:41]} 23. Ne5 {[%clk 1:25:44]} Qe6 
{[%clk 1:08:03]} 24. Nxf6+ {[%clk 1:25:44]} Qxf6 {[%clk 1:07:43]} 25. a5 Qxe5 
{[%clk 1:06:56]} 26. Qc2 {[%clk 1:23:46]} Rf6 {[%clk 1:06:01]} 27. axb6 
{[%clk 1:24:14]} Rh6 {[%clk 1:05:57]} 28. h3 {[%clk 1:22:36]} axb6 
{[%clk 1:04:44]} 29. Ra7 {[%clk 1:23:04]} Bc6 {[%clk 1:04:44]} 30. Rf4 
{[%clk 1:23:11]} g5 31. Rf3 {[%clk 1:23:03]} g4 {[%clk 1:03:26]} 32. Rf4 
{[%clk 1:23:27]} gxh3 {[%clk 1:03:37]} 33. gxh3 {[%clk 1:21:25]} Rxh3 
{[%clk 1:03:07]} 34. Bf1 {[%clk 1:21:32]} Rxe3 {[%clk 1:02:55]} 35. Qh2 
{[%clk 1:21:30]} Rg3+ {[%clk 1:02:18]} 36. Bg2 {[%clk 1:21:57]} Rg7 
{[%clk 1:02:11]} 37. Rxg7+ {[%clk 1:21:53]} Qxg7 {[%clk 1:02:10]} 38. Qh5 
{[%clk 1:22:21]} Nf6 {[%clk 1:02:09]} 0-1

[Event "21th IPCA World Individual Chp."]
[Site "followchess.com"]
[Date "2022.05.14"]
[Round "7"]
[White "Pilimon, Zbigniew"]
[Black "Oliel, Yehonatan"]
[Result "1-0"]
[WhiteElo "1620"]
[BlackElo "1535"]
[ECO "E80"]
[WhiteFed "POL"]
[BlackFed "ISR"]
[FCGameId "1432905900"]
[WhiteFideId "1110489"]
[BlackFideId "2834928"]
[TimeControl "5400+30"]

1. d4 Nf6 2. c4 {[%clk 1:29:36]} g6 {[%clk 1:30:53]} 3. Nc3 {[%clk 1:29:47]} Bg7 
{[%clk 1:31:02]} 4. e4 {[%clk 1:29:31]} d6 {[%clk 1:31:19]} 5. f3 
{[%clk 1:29:45]} Nbd7 {[%clk 1:30:39]} 6. Bd3 O-O 7. Be3 {[%clk 1:26:37]} Re8 
{[%clk 1:29:30]} 8. Qd2 {[%clk 1:26:37]} c5 {[%clk 1:28:06]} 9. Nge2 
{[%clk 1:24:59]} Nf8 {[%clk 1:27:01]} 10. Bh6 {[%clk 1:24:42]} cxd4 
{[%clk 1:26:28]} 11. Nd5 {[%clk 1:11:59]} e5 {[%clk 1:22:15]} 12. Bxg7 Kxg7 
{[%clk 1:21:59]} 13. O-O {[%clk 1:10:29]} Ne6 {[%clk 1:20:33]} 14. b4 
{[%clk 1:09:27]} b5 {[%clk 1:16:54]} 15. Rac1 {[%clk 0:59:41]} bxc4 
{[%clk 1:12:27]} 16. Bxc4 {[%clk 0:59:45]} Bb7 {[%clk 1:12:01]} 17. Nxf6 Qxf6 
{[%clk 1:11:34]} 18. Rc2 {[%clk 0:52:22]} Rec8 {[%clk 1:09:05]} 19. Rfc1 
{[%clk 0:52:36]} a5 {[%clk 1:07:57]} 20. Bd5 {[%clk 0:47:14]} Rxc2 
{[%clk 1:05:11]} 21. Rxc2 {[%clk 0:47:13]} Bxd5 {[%clk 1:04:13]} 22. exd5 
{[%clk 0:47:21]} Nf8 {[%clk 0:59:25]} 23. b5 {[%clk 0:41:56]} Nd7 
{[%clk 0:56:59]} 24. Rc6 {[%clk 0:39:17]} Nc5 {[%clk 0:55:46]} 25. Ng3 
{[%clk 0:36:36]} Qe7 {[%clk 0:49:11]} 26. b6 {[%clk 0:23:36]} h6 
{[%clk 0:39:40]} 27. f4 {[%clk 0:21:46]} exf4 {[%clk 0:28:46]} 28. Qxd4+ 
{[%clk 0:21:58]} Qe5 {[%clk 0:28:08]} 29. Qxe5+ {[%clk 0:21:58]} dxe5 
{[%clk 0:27:46]} 30. Rxc5 {[%clk 0:19:53]} fxg3 {[%clk 0:23:41]} 31. b7 
{[%clk 0:19:47]} gxh2+ {[%clk 0:23:21]} 32. Kxh2 {[%clk 0:20:00]} Rb8 
{[%clk 0:23:08]} 33. Rc7 {[%clk 0:19:35]} e4 {[%clk 0:19:56]} 34. d6 
{[%clk 0:19:16]} e3 {[%clk 0:19:07]} 35. Kg1 {[%clk 0:19:18]} g5 
{[%clk 0:09:26]} 36. Kf1 {[%clk 0:19:24]} Kf6 {[%clk 0:06:01]} 37. d7 
{[%clk 0:19:30]} 1-0

[Event "21th IPCA World Individual Chp."]
[Site "followchess.com"]
[Date "2022.05.14"]
[Round "7"]
[White "Freiberg, Doron"]
[Black "Klein, Djimmy"]
[Result "0-1"]
[WhiteElo "1244"]
[BlackElo "1392"]
[ECO "A49"]
[WhiteFed "ISR"]
[BlackFed "FRA"]
[FCGameId "-1089575487"]
[WhiteFideId "2841312"]
[BlackFideId "20669445"]
[TimeControl "5400+30"]

1. d4 {[%clk 1:30:33]} Nf6 {[%clk 1:30:53]} 2. Nf3 {[%clk 1:30:57]} g6 
{[%clk 1:31:15]} 3. g3 Bg7 {[%clk 1:31:40]} 4. Bg2 {[%clk 1:31:39]} O-O 
{[%clk 1:32:00]} 5. O-O {[%clk 1:32:03]} d6 {[%clk 1:32:25]} 6. Re1 
{[%clk 1:32:16]} c6 {[%clk 1:32:19]} 7. e4 {[%clk 1:32:03]} Nbd7 
{[%clk 1:32:12]} 8. Bf4 {[%clk 1:25:46]} Qb6 {[%clk 1:30:21]} 9. Bc1 
{[%clk 1:22:48]} Re8 {[%clk 1:30:24]} 10. b3 {[%clk 1:21:26]} Qc7 
{[%clk 1:30:23]} 11. Bb2 {[%clk 1:20:09]} Nb6 {[%clk 1:29:20]} 12. e5 
{[%clk 1:18:35]} dxe5 {[%clk 1:29:05]} 13. dxe5 {[%clk 1:18:01]} Nfd7 
{[%clk 1:25:56]} 14. Na3 Nc5 15. Rb1 {[%clk 1:07:23]} Bd7 16. Bd4 
{[%clk 1:00:34]} Ne6 {[%clk 1:22:14]} 17. Bb2 {[%clk 1:00:10]} Rad8 
{[%clk 1:22:35]} 18. Qe2 {[%clk 0:59:51]} f6 {[%clk 1:19:17]} 19. Rbd1 a5 20. 
Nc4 {[%clk 0:53:23]} Nd5 {[%clk 1:06:07]} 21. Nh4 {[%clk 0:47:04]} b5 22. Bxd5 
{[%clk 0:34:45]} cxd5 {[%clk 0:53:08]} 23. exf6 {[%clk 0:31:23]} exf6 
{[%clk 0:53:12]} 24. Ne3 {[%clk 0:29:51]} Ng5 {[%clk 0:48:38]} 25. Qd3 
{[%clk 0:17:17]} Bc6 26. Ng4 Rxe1+ 27. Rxe1 d4 {[%clk 0:38:46]} 28. Bc1 
{[%clk 0:09:02]} Nh3+ {[%clk 0:38:44]} 29. Kf1 {[%clk 0:08:56]} b4 
{[%clk 0:39:04]} 30. Qc4+ {[%clk 0:08:14]} Kh8 {[%clk 0:38:59]} 31. Re6 
{[%clk 0:04:17]} Rc8 {[%clk 0:35:53]} 32. Nxf6 {[%clk 0:02:29]} Qf7 
{[%clk 0:30:46]} 33. Ng4 {[%clk 0:01:06]} Bd7 {[%clk 0:30:48]} 34. Qa6 
{[%clk 0:00:51]} Bxe6 {[%clk 0:31:11]} 35. f4 {[%clk 0:00:45]} Rxc2 
{[%clk 0:31:08]} 36. Qa8+ {[%clk 0:00:56]} Rc8 {[%clk 0:31:19]} 37. Qxa5 
{[%clk 0:01:17]} Bxg4 {[%clk 0:31:31]} 38. Bd2 {[%clk 0:01:16]} Qe7 
{[%clk 0:31:26]} 39. Qb5 {[%clk 0:01:23]} Rc2 {[%clk 0:30:05]} 40. Qb8+ 
{[%clk 0:01:35]} Bc8 {[%clk 0:30:17]} 41. Nf3 {[%clk 0:01:22]} Qe8 
{[%clk 0:29:01]} 42. Qxb4 Rxa2 {[%clk 0:28:54]} 43. Nxd4 {[%clk 0:01:11]} Ra1+ 
{[%clk 0:28:59]} 44. Kg2 {[%clk 0:01:27]} Qe4+ {[%clk 0:29:15]} 45. Nf3 
{[%clk 0:01:11]} Rg1# {[%clk 0:29:34]} 0-1

[Event "21th IPCA World Individual Chp."]
[Site "followchess.com"]
[Date "2022.05.14"]
[Round "7"]
[White "Shchukina, Ekaterina"]
[Black "Volodarsky, Michael"]
[Result "1/2-1/2"]
[WhiteElo "1496"]
[BlackElo "1400"]
[ECO "C17"]
[WhiteFed "RUS"]
[BlackFed "ISR"]
[FCGameId "726449155"]
[WhiteFideId "34103055"]
[BlackFideId "2814366"]
[TimeControl "5400+30"]

1. e4 {[%clk 1:30:54]} e6 {[%clk 1:30:52]} 2. d4 {[%clk 1:31:14]} d5 
{[%clk 1:31:16]} 3. Nc3 {[%clk 1:31:02]} Bb4 {[%clk 1:31:04]} 4. e5 
{[%clk 1:31:22]} c5 {[%clk 1:31:17]} 5. Qg4 {[%clk 1:30:33]} Ne7 
{[%clk 1:30:38]} 6. a3 {[%clk 1:29:10]} cxd4 {[%clk 1:26:32]} 7. axb4 
{[%clk 1:27:47]} dxc3 {[%clk 1:26:54]} 8. Qxg7 {[%clk 1:27:58]} Rg8 
{[%clk 1:26:58]} 9. Qxh7 {[%clk 1:28:14]} Qc7 10. f4 Nbc6 {[%clk 1:16:20]} 11. 
Nf3 {[%clk 1:04:02]} Nxb4 {[%clk 1:15:37]} 12. Bb5+ {[%clk 0:48:45]} Bd7 
{[%clk 1:14:47]} 13. Bxd7+ {[%clk 0:49:33]} Kxd7 {[%clk 1:12:03]} 14. O-O Rh8 
{[%clk 1:08:56]} 15. Qxf7 {[%clk 0:49:13]} Raf8 16. Qg7 {[%clk 0:49:05]} Nxc2 
{[%clk 1:08:06]} 17. Rb1 {[%clk 0:43:43]} Rhg8 {[%clk 1:07:36]} 18. Qh7 Qc5+ 
{[%clk 1:00:32]} 19. Kh1 {[%clk 0:43:40]} Qc4 20. Rf2 {[%clk 0:32:14]} Rg6 
{[%clk 0:47:58]} 1/2-1/2

[Event "21th IPCA World Individual Chp."]
[Site "followchess.com"]
[Date "2022.05.13"]
[Round "6"]
[White "Gurbanov, Andrei"]
[Black "Yarmonov, Igor"]
[Result "1/2-1/2"]
[WhiteElo "2302"]
[BlackElo "2394"]
[ECO "D36"]
[WhiteFed "ISR"]
[BlackFed "UKR"]
[FCGameId "1530336414"]
[WhiteFideId "13503391"]
[BlackFideId "14114496"]
[TimeControl "5400+30"]

1. d4 {[%clk 1:30:34]} d5 {[%clk 1:30:36]} 2. c4 {[%clk 1:30:56]} e6 
{[%clk 1:30:45]} 3. Nc3 {[%clk 1:31:21]} Nf6 {[%clk 1:30:48]} 4. cxd5 
{[%clk 1:31:45]} exd5 {[%clk 1:30:53]} 5. Bg5 {[%clk 1:31:52]} c6 
{[%clk 1:29:56]} 6. Qc2 {[%clk 1:31:59]} Nbd7 {[%clk 1:29:39]} 7. e3 
{[%clk 1:32:20]} Be7 {[%clk 1:28:27]} 8. Bd3 {[%clk 1:31:02]} h6 
{[%clk 1:23:46]} 9. Bf4 {[%clk 1:30:03]} O-O {[%clk 1:23:34]} 10. h3 
{[%clk 1:30:02]} b6 {[%clk 1:22:56]} 11. Nf3 {[%clk 1:29:35]} c5 
{[%clk 1:23:06]} 12. O-O {[%clk 1:28:29]} Bb7 {[%clk 1:21:15]} 13. Rad1 
{[%clk 1:26:57]} c4 {[%clk 1:20:21]} 14. Bf5 {[%clk 1:26:23]} a6 
{[%clk 1:20:40]} 15. a4 {[%clk 1:26:00]} Bb4 {[%clk 1:20:34]} 16. Na2 
{[%clk 1:25:26]} Be7 {[%clk 1:20:35]} 17. Nc3 {[%clk 1:25:09]} Bb4 
{[%clk 1:20:26]} 18. Na2 {[%clk 1:25:24]} Be7 {[%clk 1:20:37]} 19. Ne5 
{[%clk 1:25:33]} b5 {[%clk 1:19:56]} 20. b3 {[%clk 1:22:41]} Nb6 
{[%clk 1:18:25]} 21. bxc4 {[%clk 1:19:27]} Nxc4 {[%clk 1:16:12]} 22. Qb3 
{[%clk 1:14:21]} Nd6 {[%clk 1:14:54]} 23. Bd3 {[%clk 1:13:00]} Qa5 
{[%clk 1:12:59]} 1/2-1/2

[Event "21th IPCA World Individual Chp."]
[Site "followchess.com"]
[Date "2022.05.13"]
[Round "6"]
[White "Obodchuk, Andrei"]
[Black "Campos, Eugenio"]
[Result "1-0"]
[WhiteElo "2295"]
[BlackElo "2247"]
[ECO "A15"]
[WhiteFed "RUS"]
[BlackFed "ANG"]
[FCGameId "375636009"]
[WhiteFideId "4114310"]
[BlackFideId "10100156"]
[TimeControl "5400+30"]

1. Nf3 {[%clk 1:30:42]} Nf6 {[%clk 1:30:49]} 2. c4 {[%clk 1:30:59]} c5 
{[%clk 1:31:07]} 3. Nc3 {[%clk 1:30:50]} Nc6 {[%clk 1:31:24]} 4. d4 
{[%clk 1:31:06]} cxd4 {[%clk 1:31:33]} 5. Nxd4 {[%clk 1:31:34]} g6 
{[%clk 1:31:39]} 6. e4 {[%clk 1:31:49]} d6 {[%clk 1:31:52]} 7. Be2 
{[%clk 1:31:53]} Bg7 {[%clk 1:32:13]} 8. Be3 {[%clk 1:32:11]} O-O 
{[%clk 1:32:29]} 9. O-O {[%clk 1:32:18]} Bd7 {[%clk 1:32:20]} 10. Qd2 
{[%clk 1:29:52]} a6 {[%clk 1:31:51]} 11. f3 {[%clk 1:28:38]} Rc8 
{[%clk 1:32:06]} 12. Nc2 {[%clk 1:28:01]} Be6 {[%clk 1:29:31]} 13. Rac1 
{[%clk 1:25:15]} Re8 {[%clk 1:29:21]} 14. Nd5 {[%clk 1:22:44]} Nd7 
{[%clk 1:26:36]} 15. b3 {[%clk 1:19:40]} Qa5 {[%clk 1:23:49]} 16. Qxa5 
{[%clk 1:12:04]} Nxa5 {[%clk 1:24:07]} 17. Nf4 {[%clk 1:06:01]} Bh6 
{[%clk 1:21:57]} 18. Kf2 {[%clk 1:06:15]} Nc6 {[%clk 1:21:46]} 19. h4 
{[%clk 1:05:26]} Nc5 {[%clk 1:19:38]} 20. g4 {[%clk 1:02:28]} Ne5 
{[%clk 1:17:56]} 21. g5 {[%clk 1:01:38]} Bg7 {[%clk 1:18:04]} 22. Rfd1 
{[%clk 1:01:27]} Bd7 {[%clk 1:17:35]} 23. Nd5 {[%clk 1:00:17]} Be6 
{[%clk 1:13:52]} 24. Bf1 {[%clk 0:52:31]} Nc6 {[%clk 1:05:16]} 25. Nf4 
{[%clk 0:50:23]} Be5 {[%clk 1:02:07]} 26. Nd3 {[%clk 0:44:55]} Nxd3+ 
{[%clk 1:01:45]} 27. Bxd3 {[%clk 0:45:23]} f5 {[%clk 1:00:14]} 28. exf5 
{[%clk 0:44:30]} Bxf5 {[%clk 0:58:53]} 29. f4 {[%clk 0:43:13]} Rf8 
{[%clk 0:57:27]} 30. Kg3 {[%clk 0:43:27]} Bb2 {[%clk 0:57:23]} 31. Rb1 
{[%clk 0:43:51]} Bc3 {[%clk 0:57:28]} 32. Bxf5 {[%clk 0:37:20]} Rxf5 
{[%clk 0:57:45]} 33. Rd3 {[%clk 0:37:05]} Bg7 {[%clk 0:57:45]} 34. Nd4 
{[%clk 0:33:52]} Bxd4 {[%clk 0:54:25]} 35. Bxd4 {[%clk 0:34:20]} Rcf8 
{[%clk 0:54:35]} 36. Be3 {[%clk 0:33:45]} b5 {[%clk 0:54:35]} 37. cxb5 
{[%clk 0:29:09]} axb5 {[%clk 0:54:51]} 38. Bd2 {[%clk 0:28:33]} Ra8 
{[%clk 0:54:04]} 39. Rb2 {[%clk 0:25:13]} Kf7 {[%clk 0:54:00]} 40. Kg4 
{[%clk 0:23:57]} Ra6 {[%clk 0:51:49]} 41. h5 {[%clk 0:24:06]} b4 
{[%clk 0:51:32]} 42. hxg6+ {[%clk 0:24:11]} hxg6 {[%clk 0:51:48]} 43. Be3 
{[%clk 0:23:44]} Rfa5 {[%clk 0:51:00]} 44. Rdd2 {[%clk 0:24:02]} Ke6 
{[%clk 0:50:24]} 45. Rh2 {[%clk 0:23:49]} Rd5 {[%clk 0:49:44]} 46. Rbe2 
{[%clk 0:23:34]} Kf7 {[%clk 0:49:09]} 47. Rh7+ {[%clk 0:23:13]} Kg8 
{[%clk 0:48:38]} 48. Rh6 {[%clk 0:23:11]} Kg7 {[%clk 0:48:39]} 49. Bc1 
{[%clk 0:22:01]} Rd1 {[%clk 0:47:33]} 50. Bb2+ {[%clk 0:20:16]} Kf7 
{[%clk 0:45:22]} 51. Rh7+ {[%clk 0:20:24]} Kf8 {[%clk 0:45:15]} 52. Rh8+ 
{[%clk 0:18:47]} Kf7 {[%clk 0:45:24]} 53. Rc8 {[%clk 0:17:54]} Rg1+ 
{[%clk 0:43:18]} 54. Kf3 {[%clk 0:18:00]} Rf1+ {[%clk 0:43:13]} 55. Kg3 
{[%clk 0:16:13]} Rg1+ {[%clk 0:41:34]} 56. Kf2 {[%clk 0:14:04]} Rh1 
{[%clk 0:41:39]} 57. Kg2 {[%clk 0:14:31]} Rb1 {[%clk 0:41:50]} 58. Bh8 
{[%clk 0:14:37]} Rc1 {[%clk 0:41:57]} 59. Rc7 {[%clk 0:14:03]} Rc5 
{[%clk 0:42:04]} 60. Bf6 {[%clk 0:13:46]} Rca5 {[%clk 0:41:21]} 61. Bxe7 
{[%clk 0:13:09]} Rxa2 {[%clk 0:41:36]} 62. Bxd6+ {[%clk 0:12:57]} Kg8 
{[%clk 0:41:51]} 63. Rxa2 {[%clk 0:12:59]} Rxa2+ {[%clk 0:42:13]} 64. Kf3 
{[%clk 0:12:16]} Nd4+ {[%clk 0:33:51]} 65. Ke4 {[%clk 0:12:42]} Nxb3 
{[%clk 0:33:50]} 66. Be5 {[%clk 0:12:26]} Nd2+ {[%clk 0:32:18]} 67. Kd3 
{[%clk 0:12:22]} b3 {[%clk 0:32:06]} 68. Rb7 {[%clk 0:11:23]} Nf3 
{[%clk 0:29:46]} 69. Bc3 {[%clk 0:09:03]} Ra4 {[%clk 0:27:07]} 70. f5 
{[%clk 0:07:05]} Nxg5 {[%clk 0:19:37]} 71. fxg6 {[%clk 0:07:28]} Ra8 
{[%clk 0:19:35]} 72. Bf6 {[%clk 0:06:13]} Ne6 {[%clk 0:19:41]} 73. Ke3 
{[%clk 0:03:34]} Re8 {[%clk 0:18:39]} 74. Kd2 {[%clk 0:02:41]} Rf8 
{[%clk 0:18:13]} 75. Bc3 {[%clk 0:02:26]} Rd8+ {[%clk 0:17:02]} 76. Kc1 
{[%clk 0:02:18]} Nd4 {[%clk 0:16:38]} 77. Kb2 {[%clk 0:02:21]} Rd6 
{[%clk 0:16:43]} 78. Rb8+ {[%clk 0:02:11]} Kg7 {[%clk 0:17:02]} 79. Rb4 
{[%clk 0:02:38]} Kxg6 {[%clk 0:17:17]} 80. Bxd4 {[%clk 0:03:06]} Kf5 
{[%clk 0:17:22]} 81. Kxb3 {[%clk 0:03:16]} Rd5 {[%clk 0:17:33]} 82. Kc3 
{[%clk 0:03:33]} Ke4 {[%clk 0:17:45]} 83. Rb8 {[%clk 0:03:41]} Rd7 
{[%clk 0:17:51]} 84. Re8+ {[%clk 0:04:05]} Kf3 {[%clk 0:18:12]} 85. Kd3 
{[%clk 0:04:33]} Rd6 {[%clk 0:18:26]} 86. Rf8+ {[%clk 0:04:56]} Kg4 
{[%clk 0:18:32]} 87. Ke4 {[%clk 0:05:23]} Re6+ {[%clk 0:18:53]} 88. Be5 
{[%clk 0:05:48]} Re7 {[%clk 0:18:49]} 89. Rg8+ {[%clk 0:06:08]} Kh3 
{[%clk 0:19:05]} 90. Kf3 {[%clk 0:06:04]} 1-0